{"text_format":"3","workbook":"xlsx","n_sheets":5,"sheets":["Raporttinäkymä","Tulot ja menot","Budjettiraportti","Tietoluettelot","Luokan Pivot-taulukko"],"not_rendered":{"charts":3,"defined_names":18,"pivot_tables":2},"read":"whole","date_system":"1900"}

{"sheet":"Raporttinäkymä","index":0,"n_rows":21,"n_cols":16,"rows_kept":21,"merged":[[5,2,5,3]]}
[]
[null,null,"Puolikuukausittainen kodin budjetti",{"$nulls":12},"RAPORTTINÄKYMÄ"]
[]
[]
[]
[null,null,{"$f":"CHOOSE(Kuukausinumero,\"Tamikuu\",\"Helmikuu\",\"Maaliskuu\",\"Huhtikuu\",\"Toukokuu\",\"kesäkuu\",\"kesäkuu\",\"Elokuu\",\"Elokuu\",\"Lokakuu\",\"Marraskuu\",\"Joulukuu\")","v":"Elokuu"},null,8,{"$nulls":5},2012]
[]
[]
[null,null,"KUUKAUDEN KOKONAISSUMMAT","Kuukauden kokonaissummat",{"$nulls":5},"VUODEN KOKONAISSUMMAT",null,"Vuoden kokonaissummat"]
[null,null,"TULOT","Menot",{"$f":"SUMIF(Menot[PÄIVÄMÄÄRÄ],\"<=\"&KuukaudenPäättymispäivä,Menot[SUMMA])-SUMIF(Menot[PÄIVÄMÄÄRÄ],\"<\"&KuukaudeAlkamispäivä,Menot[SUMMA])","v":{"v":0,"d":"$0"}},{"$nulls":4},"TULOT",null,"Menot",{"$f":"SUM(IF(YEAR(Menot[PÄIVÄMÄÄRÄ])=K6,Menot[SUMMA]))","v":{"v":10242,"d":"$10,242"}}]
[null,null,"MENOT","Tulot",{"$f":"SUMIF(Tulot[PÄIVÄMÄÄRÄ],\"<=\"&KuukaudenPäättymispäivä,Tulot[SUMMA])-SUMIF(Tulot[PÄIVÄMÄÄRÄ],\"<\"&KuukaudeAlkamispäivä,Tulot[SUMMA])","v":{"v":0,"d":"$0"}},{"$nulls":4},"MENOT",null,"Tulot",{"$f":"SUM(IF(YEAR(Tulot[PÄIVÄMÄÄRÄ])=K6,Tulot[SUMMA]))","v":{"v":12700,"d":"$12,700"}}]
[]
[]
[]
[]
[]
[{"$nulls":3},"TAMMIKUU","HELMIKUU","MAALISKUU","HUHTIKUU","TOUKOKUU","KESÄKUU","HEINÄKUU","ELOKUU","SYYSKUU","LOKAKUU","MARRASKUU","JOULUKUU"]
[null,null,"Tulot 1–15",{"$f":"SUMIFS(Tulot[SUMMA],Tulot[KUVAUS],\"<=\"&PvmKeski,Tulot[KUVAUS],\">=\"&PvmAlku)","v":{"v":0,"d":"0.00 €"}},{"$f":"SUMIFS(Tulot[SUMMA],Tulot[KUVAUS],\"<=\"&PvmKeski,Tulot[KUVAUS],\">=\"&PvmAlku)","v":{"v":0,"d":"0.00 €"}},{"$f":"SUMIFS(Tulot[SUMMA],Tulot[KUVAUS],\"<=\"&PvmKeski,Tulot[KUVAUS],\">=\"&PvmAlku)","v":{"v":0,"d":"0.00 €"}},{"$f":"SUMIFS(Tulot[SUMMA],Tulot[KUVAUS],\"<=\"&PvmKeski,Tulot[KUVAUS],\">=\"&PvmAlku)","v":{"v":0,"d":"0.00 €"}},{"$f":"SUMIFS(Tulot[SUMMA],Tulot[KUVAUS],\"<=\"&PvmKeski,Tulot[KUVAUS],\">=\"&PvmAlku)","v":{"v":0,"d":"0.00 €"}},{"$f":"SUMIFS(Tulot[SUMMA],Tulot[KUVAUS],\"<=\"&PvmKeski,Tulot[KUVAUS],\">=\"&PvmAlku)","v":{"v":0,"d":"0.00 €"}},{"$f":"SUMIFS(Tulot[SUMMA],Tulot[KUVAUS],\"<=\"&PvmKeski,Tulot[KUVAUS],\">=\"&PvmAlku)","v":{"v":0,"d":"0.00 €"}},{"$f":"SUMIFS(Tulot[SUMMA],Tulot[KUVAUS],\"<=\"&PvmKeski,Tulot[KUVAUS],\">=\"&PvmAlku)","v":{"v":0,"d":"0.00 €"}},{"$f":"SUMIFS(Tulot[SUMMA],Tulot[KUVAUS],\"<=\"&PvmKeski,Tulot[KUVAUS],\">=\"&PvmAlku)","v":{"v":0,"d":"0.00 €"}},{"$f":"SUMIFS(Tulot[SUMMA],Tulot[KUVAUS],\"<=\"&PvmKeski,Tulot[KUVAUS],\">=\"&PvmAlku)","v":{"v":0,"d":"0.00 €"}},{"$f":"SUMIFS(Tulot[SUMMA],Tulot[KUVAUS],\"<=\"&PvmKeski,Tulot[KUVAUS],\">=\"&PvmAlku)","v":{"v":0,"d":"0.00 €"}},{"$f":"SUMIFS(Tulot[SUMMA],Tulot[KUVAUS],\"<=\"&PvmKeski,Tulot[KUVAUS],\">=\"&PvmAlku)","v":{"v":0,"d":"0.00 €"}}]
[null,null,"Tulot 16–",{"$f":"SUMIFS(Tulot[SUMMA],Tulot[KUVAUS],\"<=\"&PvmLoppu,Tulot[KUVAUS],\">=\"&PvmKeski+1)","v":{"v":0,"d":"0.00 €"}},{"$f":"SUMIFS(Tulot[SUMMA],Tulot[KUVAUS],\"<=\"&PvmLoppu,Tulot[KUVAUS],\">=\"&PvmKeski+1)","v":{"v":0,"d":"0.00 €"}},{"$f":"SUMIFS(Tulot[SUMMA],Tulot[KUVAUS],\"<=\"&PvmLoppu,Tulot[KUVAUS],\">=\"&PvmKeski+1)","v":{"v":0,"d":"0.00 €"}},{"$f":"SUMIFS(Tulot[SUMMA],Tulot[KUVAUS],\"<=\"&PvmLoppu,Tulot[KUVAUS],\">=\"&PvmKeski+1)","v":{"v":0,"d":"0.00 €"}},{"$f":"SUMIFS(Tulot[SUMMA],Tulot[KUVAUS],\"<=\"&PvmLoppu,Tulot[KUVAUS],\">=\"&PvmKeski+1)","v":{"v":0,"d":"0.00 €"}},{"$f":"SUMIFS(Tulot[SUMMA],Tulot[KUVAUS],\"<=\"&PvmLoppu,Tulot[KUVAUS],\">=\"&PvmKeski+1)","v":{"v":0,"d":"0.00 €"}},{"$f":"SUMIFS(Tulot[SUMMA],Tulot[KUVAUS],\"<=\"&PvmLoppu,Tulot[KUVAUS],\">=\"&PvmKeski+1)","v":{"v":0,"d":"0.00 €"}},{"$f":"SUMIFS(Tulot[SUMMA],Tulot[KUVAUS],\"<=\"&PvmLoppu,Tulot[KUVAUS],\">=\"&PvmKeski+1)","v":{"v":0,"d":"0.00 €"}},{"$f":"SUMIFS(Tulot[SUMMA],Tulot[KUVAUS],\"<=\"&PvmLoppu,Tulot[KUVAUS],\">=\"&PvmKeski+1)","v":{"v":0,"d":"0.00 €"}},{"$f":"SUMIFS(Tulot[SUMMA],Tulot[KUVAUS],\"<=\"&PvmLoppu,Tulot[KUVAUS],\">=\"&PvmKeski+1)","v":{"v":0,"d":"0.00 €"}},{"$f":"SUMIFS(Tulot[SUMMA],Tulot[KUVAUS],\"<=\"&PvmLoppu,Tulot[KUVAUS],\">=\"&PvmKeski+1)","v":{"v":0,"d":"0.00 €"}},{"$f":"SUMIFS(Tulot[SUMMA],Tulot[KUVAUS],\"<=\"&PvmLoppu,Tulot[KUVAUS],\">=\"&PvmKeski+1)","v":{"v":0,"d":"0.00 €"}}]
[null,null,"Menot 1–15",{"$f":"SUMIFS(Menot[SUMMA],Menot[PÄIVÄMÄÄRÄ],\"<=\"&PvmKeski,Menot[PÄIVÄMÄÄRÄ],\">=\"&PvmAlku)","v":{"v":0,"d":"0.00 €"}},{"$f":"SUMIFS(Menot[SUMMA],Menot[PÄIVÄMÄÄRÄ],\"<=\"&PvmLoppu,Menot[PÄIVÄMÄÄRÄ],\">=\"&PvmAlku)","v":{"v":0,"d":"0.00 €"}},{"$f":"SUMIFS(Menot[SUMMA],Menot[PÄIVÄMÄÄRÄ],\"<=\"&PvmLoppu,Menot[PÄIVÄMÄÄRÄ],\">=\"&PvmAlku)","v":{"v":0,"d":"0.00 €"}},{"$f":"SUMIFS(Menot[SUMMA],Menot[PÄIVÄMÄÄRÄ],\"<=\"&PvmLoppu,Menot[PÄIVÄMÄÄRÄ],\">=\"&PvmAlku)","v":{"v":0,"d":"0.00 €"}},{"$f":"SUMIFS(Menot[SUMMA],Menot[PÄIVÄMÄÄRÄ],\"<=\"&PvmLoppu,Menot[PÄIVÄMÄÄRÄ],\">=\"&PvmAlku)","v":{"v":0,"d":"0.00 €"}},{"$f":"SUMIFS(Menot[SUMMA],Menot[PÄIVÄMÄÄRÄ],\"<=\"&PvmLoppu,Menot[PÄIVÄMÄÄRÄ],\">=\"&PvmAlku)","v":{"v":0,"d":"0.00 €"}},{"$f":"SUMIFS(Menot[SUMMA],Menot[PÄIVÄMÄÄRÄ],\"<=\"&PvmLoppu,Menot[PÄIVÄMÄÄRÄ],\">=\"&PvmAlku)","v":{"v":0,"d":"0.00 €"}},{"$f":"SUMIFS(Menot[SUMMA],Menot[PÄIVÄMÄÄRÄ],\"<=\"&PvmLoppu,Menot[PÄIVÄMÄÄRÄ],\">=\"&PvmAlku)","v":{"v":0,"d":"0.00 €"}},{"$f":"SUMIFS(Menot[SUMMA],Menot[PÄIVÄMÄÄRÄ],\"<=\"&PvmLoppu,Menot[PÄIVÄMÄÄRÄ],\">=\"&PvmAlku)","v":{"v":1225,"d":"1,225.00 €"}},{"$f":"SUMIFS(Menot[SUMMA],Menot[PÄIVÄMÄÄRÄ],\"<=\"&PvmLoppu,Menot[PÄIVÄMÄÄRÄ],\">=\"&PvmAlku)","v":{"v":5925,"d":"5,925.00 €"}},{"$f":"SUMIFS(Menot[SUMMA],Menot[PÄIVÄMÄÄRÄ],\"<=\"&PvmLoppu,Menot[PÄIVÄMÄÄRÄ],\">=\"&PvmAlku)","v":{"v":2792,"d":"2,792.00 €"}},{"$f":"SUMIFS(Menot[SUMMA],Menot[PÄIVÄMÄÄRÄ],\"<=\"&PvmLoppu,Menot[PÄIVÄMÄÄRÄ],\">=\"&PvmAlku)","v":{"v":0,"d":"0.00 €"}}]
[null,null,"Menot 16–",{"$f":"SUMIFS(Menot[SUMMA],Menot[PÄIVÄMÄÄRÄ],\"<=\"&PvmLoppu,Menot[PÄIVÄMÄÄRÄ],\">=\"&PvmKeski+1)","v":{"v":0,"d":"0.00 €"}},{"$f":"SUMIFS(Menot[SUMMA],Menot[PÄIVÄMÄÄRÄ],\"<=\"&PvmLoppu,Menot[PÄIVÄMÄÄRÄ],\">=\"&PvmKeski+1)","v":{"v":0,"d":"0.00 €"}},{"$f":"SUMIFS(Menot[SUMMA],Menot[PÄIVÄMÄÄRÄ],\"<=\"&PvmLoppu,Menot[PÄIVÄMÄÄRÄ],\">=\"&PvmKeski+1)","v":{"v":0,"d":"0.00 €"}},{"$f":"SUMIFS(Menot[SUMMA],Menot[PÄIVÄMÄÄRÄ],\"<=\"&PvmLoppu,Menot[PÄIVÄMÄÄRÄ],\">=\"&PvmKeski+1)","v":{"v":0,"d":"0.00 €"}},{"$f":"SUMIFS(Menot[SUMMA],Menot[PÄIVÄMÄÄRÄ],\"<=\"&PvmLoppu,Menot[PÄIVÄMÄÄRÄ],\">=\"&PvmKeski+1)","v":{"v":0,"d":"0.00 €"}},{"$f":"SUMIFS(Menot[SUMMA],Menot[PÄIVÄMÄÄRÄ],\"<=\"&PvmLoppu,Menot[PÄIVÄMÄÄRÄ],\">=\"&PvmKeski+1)","v":{"v":0,"d":"0.00 €"}},{"$f":"SUMIFS(Menot[SUMMA],Menot[PÄIVÄMÄÄRÄ],\"<=\"&PvmLoppu,Menot[PÄIVÄMÄÄRÄ],\">=\"&PvmKeski+1)","v":{"v":0,"d":"0.00 €"}},{"$f":"SUMIFS(Menot[SUMMA],Menot[PÄIVÄMÄÄRÄ],\"<=\"&PvmLoppu,Menot[PÄIVÄMÄÄRÄ],\">=\"&PvmKeski+1)","v":{"v":0,"d":"0.00 €"}},{"$f":"SUMIFS(Menot[SUMMA],Menot[PÄIVÄMÄÄRÄ],\"<=\"&PvmLoppu,Menot[PÄIVÄMÄÄRÄ],\">=\"&PvmKeski+1)","v":{"v":100,"d":"100.00 €"}},{"$f":"SUMIFS(Menot[SUMMA],Menot[PÄIVÄMÄÄRÄ],\"<=\"&PvmLoppu,Menot[PÄIVÄMÄÄRÄ],\">=\"&PvmKeski+1)","v":{"v":775,"d":"775.00 €"}},{"$f":"SUMIFS(Menot[SUMMA],Menot[PÄIVÄMÄÄRÄ],\"<=\"&PvmLoppu,Menot[PÄIVÄMÄÄRÄ],\">=\"&PvmKeski+1)","v":{"v":0,"d":"0.00 €"}},{"$f":"SUMIFS(Menot[SUMMA],Menot[PÄIVÄMÄÄRÄ],\"<=\"&PvmLoppu,Menot[PÄIVÄMÄÄRÄ],\">=\"&PvmKeski+1)","v":{"v":0,"d":"0.00 €"}}]

{"sheet":"Tulot ja menot","index":1,"n_rows":40,"n_cols":10,"rows_kept":40}
[]
[null,null,"Puolikuukausittainen kodin budjetti",{"$nulls":6},"TULOT JA MENOT"]
[]
[]
[]
[null,null,"TULOT",{"$nulls":3},"MENOT"]
[]
[null,null,"PÄIVÄMÄÄRÄ","KUVAUS","SUMMA",null,"PÄIVÄMÄÄRÄ","LUOKKA","KUVAUS","SUMMA"]
[null,null,{"$f":"NOW()-14","v":"2012-12-06T06:41:52.660"},"Arin palkka",{"v":1300,"d":"1,300.00 €"},null,{"$f":"NOW()-7","v":"2012-12-13T06:41:52.660"},"Kotitalous","Asuntolaina",{"v":1000,"d":"1,000.00 €"}]
[null,null,{"$f":"NOW()-14","v":"2012-12-06T06:41:52.660"},"Heidin palkka",{"v":1300,"d":"1,300.00 €"},null,{"$f":"NOW()-7","v":"2012-12-13T06:41:52.660"},"Kotitalous","Sähkö",{"v":100,"d":"100.00 €"}]
[null,null,{"$f":"NOW()-28","v":"2012-11-22T06:41:52.660"},"Arin palkka",{"v":1500,"d":"1,500.00 €"},null,"2012-12-13T06:41:52.660","Kotitalous","Vesi/jätevesi",{"v":50,"d":"50.00 €"}]
[null,null,"2012-11-22T06:41:52.660","Heidin palkka",{"v":1600,"d":"1,600.00 €"},null,"2012-12-13T06:41:52.660","Kotitalous","Jätehuolto",{"v":25,"d":"25.00 €"}]
[null,null,{"$f":"NOW()-42","v":"2012-11-08T06:41:52.660"},"Arin palkka",{"v":1300,"d":"1,300.00 €"},null,"2012-12-13T06:41:52.660","Kotitalous","Matkapuhelin",{"v":100,"d":"100.00 €"}]
[null,null,"2012-11-08T06:41:52.660","Heidin palkka",{"v":1300,"d":"1,300.00 €"},null,"2012-12-13T06:41:52.660","Kotitalous","Kotipuhelin",{"v":30,"d":"30.00 €"}]
[null,null,{"$f":"NOW()-56","v":"2012-10-25T06:41:52.660"},"Arin palkka",{"v":1500,"d":"1,500.00 €"},null,"2012-12-13T06:41:52.660","Kotitalous","Internet",{"v":50,"d":"50.00 €"}]
[null,null,"2012-10-25T06:41:52.660","Heidin palkka",{"v":1600,"d":"1,600.00 €"},null,"2012-12-13T06:41:52.660","Kotitalous","Televisio",{"v":50,"d":"50.00 €"}]
[null,null,{"$f":"NOW()-70","v":"2012-10-11T06:41:52.660"},"Arin palkka",{"v":1300,"d":"1,300.00 €"},null,"2012-12-13T06:41:52.660","Kotitalous","Huolto/korjaukset",{"v":25,"d":"25.00 €"}]
[{"$nulls":6},{"$f":"NOW()-8","v":"2012-12-12T06:41:52.660"},"Kotitalous","Luottokortti 1 ",{"v":100,"d":"100.00 €"}]
[{"$nulls":6},{"$f":"NOW()-9","v":"2012-12-11T06:41:52.660"},"Viihde","Elokuvat",{"v":37,"d":"37.00 €"}]
[{"$nulls":6},{"$f":"NOW()-10","v":"2012-12-10T06:41:52.660"},"Ruoka","Ruokaostokset",{"v":350,"d":"350.00 €"}]
[{"$nulls":6},{"$f":"NOW()-11","v":"2012-12-09T06:41:52.660"},"Ruoka","Ravintoloissa syöminen",{"v":75,"d":"75.00 €"}]
[{"$nulls":6},{"$f":"NOW()-12","v":"2012-12-08T06:41:52.660"},"Lapset","Välipalaraha",{"v":150,"d":"150.00 €"}]
[{"$nulls":6},{"$f":"NOW()-13","v":"2012-12-07T06:41:52.660"},"Sijoitustilit","Säästöt",{"v":250,"d":"250.00 €"}]
[{"$nulls":6},{"$f":"NOW()-14","v":"2012-12-06T06:41:52.660"},"Sijoitustilit","Sijoitustili",{"v":250,"d":"250.00 €"}]
[{"$nulls":6},{"$f":"NOW()-15","v":"2012-12-05T06:41:52.660"},"Henkilökohtaiset menot","Kuntosalijäsenyys",{"v":100,"d":"100.00 €"}]
[{"$nulls":6},{"$f":"NOW()-16","v":"2012-12-04T06:41:52.660"},"Lemmikkieläimet","Ruoka",{"v":50,"d":"50.00 €"}]
[{"$nulls":6},{"$f":"NOW()-20","v":"2012-11-30T06:41:52.660"},"Lemmikkieläimet","Trimmaus",{"v":50,"d":"50.00 €"}]
[{"$nulls":6},{"$f":"NOW()-20","v":"2012-11-30T06:41:52.660"},"Lemmikkieläimet","Muut",{"v":50,"d":"50.00 €"}]
[{"$nulls":6},{"$f":"NOW()-25","v":"2012-11-25T06:41:52.660"},"Liikkuminen","Auton 1 maksu ",{"v":300,"d":"300.00 €"}]
[{"$nulls":6},{"$f":"NOW()-25","v":"2012-11-25T06:41:52.660"},"Liikkuminen","Auton 2 maksu ",{"v":350,"d":"350.00 €"}]
[{"$nulls":6},{"$f":"NOW()-25","v":"2012-11-25T06:41:52.660"},"Liikkuminen","Autovakuutus",{"v":50,"d":"50.00 €"}]
[{"$nulls":6},{"$f":"NOW()-30","v":"2012-11-20T06:41:52.660"},"Liikkuminen","Polttoaine",{"v":50,"d":"50.00 €"}]
[{"$nulls":6},{"$f":"NOW()-31","v":"2012-11-19T06:41:52.660"},"Liikkuminen","Polttoaine",{"v":25,"d":"25.00 €"}]
[{"$nulls":6},{"$f":"NOW()-42","v":"2012-11-08T06:41:52.660"},"Liikkuminen","Huolto/korjaukset",{"v":150,"d":"150.00 €"}]
[{"$nulls":6},{"$f":"NOW()-45","v":"2012-11-05T06:41:52.660"},"Kotitalous","Asuntolaina",{"v":5000,"d":"5,000.00 €"}]
[{"$nulls":6},{"$f":"NOW()-50","v":"2012-10-31T06:41:52.660"},"Kotitalous","Elintarvikkeet",{"v":200,"d":"200.00 €"}]
[{"$nulls":6},{"$f":"NOW()-65","v":"2012-10-16T06:41:52.660"},"Kotitalous","Kotipuhelin",{"v":100,"d":"100.00 €"}]
[{"$nulls":6},{"$f":"NOW()-70","v":"2012-10-11T06:41:52.660"},"Kotitalous","Jätehuolto",{"v":50,"d":"50.00 €"}]
[{"$nulls":6},{"$f":"NOW()-75","v":"2012-10-06T06:41:52.660"},"Kotitalous","Asuntolaina",{"v":1000,"d":"1,000.00 €"}]
[{"$nulls":6},{"$f":"NOW()-78","v":"2012-10-03T06:41:52.660"},"Viihde","Elokuvat",{"v":75,"d":"75.00 €"}]

{"sheet":"Budjettiraportti","index":2,"n_rows":41,"n_cols":8,"rows_kept":41}
[]
[null,null,"Puolikuukausittainen kodin budjetti",{"$nulls":4},"BUDJETTIRAPORTTI"]
{"$rows_empty":10}
[null,null,"MENOT",null,null,"LUOKAN KOKONAISSUMMAT"]
[]
[null,null,"KUVAUS","YHTEENSÄ"]
[null,null,"Auton 1 maksu ",{"v":300,"d":"300 €"}]
[null,null,"Auton 2 maksu ",{"v":350,"d":"350 €"}]
[null,null,"Autovakuutus",{"v":50,"d":"50 €"}]
[null,null,"Matkapuhelin",{"v":100,"d":"100 €"}]
[null,null,"Luottokortti 1 ",{"v":100,"d":"100 €"}]
[null,null,"Ravintoloissa syöminen",{"v":75,"d":"75 €"}]
[null,null,"Sähkö",{"v":100,"d":"100 €"}]
[null,null,"Ruoka",{"v":50,"d":"50 €"}]
[null,null,"Polttoaine",{"v":75,"d":"75 €"}]
[null,null,"Jätehuolto",{"v":75,"d":"75 €"}]
[null,null,"Ruokaostokset",{"v":350,"d":"350 €"}]
[null,null,"Trimmaus",{"v":50,"d":"50 €"}]
[null,null,"Kuntosalijäsenyys",{"v":100,"d":"100 €"}]
[null,null,"Kotipuhelin",{"v":130,"d":"130 €"}]
[null,null,"Internet",{"v":50,"d":"50 €"}]
[null,null,"Sijoitustili",{"v":250,"d":"250 €"}]
[null,null,"Välipalaraha",{"v":150,"d":"150 €"}]
[null,null,"Huolto/korjaukset",{"v":175,"d":"175 €"}]
[null,null,"Asuntolaina",{"v":7000,"d":"7,000 €"}]
[null,null,"Elokuvat",{"v":112,"d":"112 €"}]
[null,null,"Muut",{"v":50,"d":"50 €"}]
[null,null,"Säästöt",{"v":250,"d":"250 €"}]
[null,null,"Televisio",{"v":50,"d":"50 €"}]
[null,null,"Vesi/jätevesi",{"v":50,"d":"50 €"}]
[null,null,"Elintarvikkeet",{"v":200,"d":"200 €"}]
[null,null,"YHTEENSÄ",{"v":10242,"d":"10,242 €"}]

{"sheet":"Tietoluettelot","index":3,"n_rows":20,"n_cols":14,"rows_kept":20}
[]
[null,null,"Puolikuukausittainen kodin budjetti",{"$nulls":10},"TIETOLUETTELOT"]
[]
[]
[null,null,"ASETUS         Alla olevat luokkatiedot lisätään Menot ja tulot -taulukon avattaviin Menot-luetteloihin. Päivitä luetteloita muokkaamalla luokkien alla olevia nimiä tai kuvauksia."]
[]
[null,null,"Kotitalous","Viihde","Ruoka","Lahjat/lahjoitukset","Lapset","Sijoitustilit","Terveydenhoito","Muut","Henkilökohtaiset menot","Lemmikkieläimet","Verot/maksut","Liikkuminen"]
[null,null,"Asuntolaina","Elokuvat","Ruokaostokset","Hyväntekeväisyys 1","Vaatteet","Vapaaehtoinen eläke","Lääkärikulut","Muut","Vaatteet","Ruoka","Valtion","Auton 1 maksu "]
[null,null,"Sähkö","Videot/elokuvat","Ravintoloissa syöminen","Hyväntekeväisyys 2","Lelut/pelit","Säästöt","Vakuutus","Jäsenmaksut","Kauneudenhoito","Elintarvikkeet","Kunnan","Auton 2 maksu "]
[null,null,"Vesi/jätevesi","Musiikki",null,"Hyväntekeväisyys 3","Välipalaraha","Käyttötili",null,null,"Pesulapalvelut","Terveydenhoito","Paikallinen","Autovakuutus"]
[null,null,"Jätehuolto","Konsertit/teatteri",null,"Lahjat","Jäsenmaksut/maksut","Eläke",null,null,"Kuntosalijäsenyys","Trimmaus","Muut","Käyttöönotto/rekisteröinti"]
[null,null,"Matkapuhelin","Urheilutapahtumat",null,null,"Koulutarvikkeet","Sijoitustili",null,null,"Ostokset","Muut","Asianajaja","Polttoaine"]
[null,null,"Kotipuhelin","Muut",null,null,"Muut","Opiskelu",null,null,"Muut",null,"Elatusmaksut","Huolto/korjaukset"]
[null,null,"Internet",{"$nulls":3},"Pesulapalvelut","Lainat",{"$nulls":4},"Elatusapu","Julkiset kulkuvälineet"]
[null,null,"Televisio",{"$nulls":4},"Opintolainat",{"$nulls":4},"Muut"]
[null,null,"Huolto/korjaukset"]
[null,null,"Elintarvikkeet"]
[null,null,"Kaapelitelevisio/internet/puhelin"]
[null,null,"Luottokortti 1 "]
[null,null,"Luottokortti 2 "]

{"sheet":"Luokan Pivot-taulukko","index":4,"n_rows":16,"n_cols":14,"rows_kept":16,"hidden":true}
[]
[null,null,"Puolikuukausittainen kodin budjetti",{"$nulls":10},"LUOKAN PIVOT-TAULUKKO"]
[]
[]
[null,"Tämä Pivot-taulukko on Budjettiraportin Luokan kokonaissummat -Pivot-taulukon tietolähde. "]
[]
[null,null,"Riviotsikot","Summa  / SUMMA"]
[null,null,"Lapset",{"v":150,"d":"150 €"}]
[null,null,"Viihde",{"v":112,"d":"112 €"}]
[null,null,"Ruoka",{"v":425,"d":"425 €"}]
[null,null,"Kotitalous",{"v":7880,"d":"7,880 €"}]
[null,null,"Sijoitustilit",{"v":500,"d":"500 €"}]
[null,null,"Henkilökohtaiset menot",{"v":100,"d":"100 €"}]
[null,null,"Lemmikkieläimet",{"v":150,"d":"150 €"}]
[null,null,"Liikkuminen",{"v":925,"d":"925 €"}]
[null,null,"Kaikki yhteensä",{"v":10242,"d":"10,242 €"}]